Cogmind - Beta 13 @@@ ROGUE MODE // 2024.03.31 @ 18:28:35 Player: Maha Result: Destroyed by S-27 Virus with Autogun Performance ------------- Evolutions (4) 2000 Regions Visited (10) 2000 Robots Destroyed (28) 140 Value Destroyed (1020) 1020 Prototype IDs (24) 480 Alien Tech Used (0) 0 Bonus (833) 833 TOTAL SCORE: 6473 Bonus ------- Follower Combat Kills 33 Entered DSFs 500 Aligned with FarCom 300 Cogmind --------- Core Integrity 0/850 Matter 300/300 Energy 100/100 System Corruption 0% Temperature Cool (0) Movement Core (100) Ox1 Location -6/Lower Caves Parts ------- > --- POWER (2) -------- (None) > --- PROPULSION (3) --- (None) > --- UTILITY (5) ------ Targeting Computer Improved Hacking Suite > --- WEAPON (5) ------- Powered Hammer Spear > --- INVENTORY (5) ---- Fission Core Carbon-fiber Leg Armored Leg Improved Particle Charger System Restoration Module Peak State ------------ > --- POWER ------------ Improved Deuterium Engine Fission Core > --- PROPULSION ------- Armored Leg Armored Leg Armored Leg > --- UTILITY ---------- Small Storage Unit Targeting Computer Force Booster Improved Hacking Suite Trap Reconfigurator > --- WEAPON ----------- Enhanced Autogun Powered Hammer Greatsword Spear > --- INVENTORY -------- Fission Core Carbon-fiber Leg Carbon-fiber Leg Armored Leg Improved Particle Charger System Restoration Module Remote Datajack [Rating: 66] Favorites ----------- Power Light Angular Momentum Engine Engine Light Angular Momentum Engine Power Core Light Nuclear Core Propulsion Armored Leg Treads Advanced Treads Leg Armored Leg Utility Targeting Computer Device Trap Reconfigurator Storage Small Storage Unit Processor Targeting Computer Hackware Improved Hacking Suite Weapon Advanced Assault Cannon Energy Gun Small Laser Ballistic Gun Enhanced Autogun Ballistic Cannon Advanced Assault Cannon Special Weapon Mining Laser Impact Weapon Powered Hammer Slashing Weapon Greatsword Piercing Weapon Spear Build | -11 -10 -10 -10 -9 -8 -7 -7 -6 -6 -6 ------- Run | Yrd Mat Min Exi Min Mat Fac DSF Fac Low Low Slots Evolved 8 | . . . . . 4 2 . 2 . . Power 1 | . . . . . . 1 . . . . Propulsion 1 | . . . . . 1 . . . . . Utility 3 | . . . . . 2 . . 1 . . Weapon 3 | . . . . . 1 1 . 1 . . Parts Attached 46 | 7 1 3 3 1 7 1 7 14 2 . Power 5 | 1 . 1 . . . . 1 1 1 . Engine 3 | 1 . 1 . . . . . 1 . . Core 2 | . . . . . . . 1 . 1 . Reactor . | . . . . . . . . . . . Propulsion 9 | 2 . . 1 . 3 . . 3 . . Treads 3 | . . . . . 3 . . . . . Leg 6 | 2 . . 1 . . . . 3 . . Wheel . | . . . . . . . . . . . Hover . | . . . . . . . . . . . Flight . | . . . . . . . . . . . Utility 12 | 1 1 1 2 . 1 . 2 3 1 . Device 6 | 1 . . 1 . . . 2 1 1 . Storage 2 | . 1 . . . 1 . . . . . Processor 3 | . . 1 1 . . . . 1 . . Hackware 1 | . . . . . . . . 1 . . Protection . | . . . . . . . . . . . Artifact . | . . . . . . . . . . . Weapon 20 | 3 . 1 . 1 3 1 4 7 . . Energy Gun 4 | 2 . 1 . . . 1 . . . . Energy Cannon . | . . . . . . . . . . . Ballistic Gun 8 | 1 . . . . 3 . . 4 . . Ballistic Cannon 4 | . . . . . . . 4 . . . Launcher . | . . . . . . . . . . . Special Weapon 1 | . . . . 1 . . . . . . Impact Weapon 1 | . . . . . . . . 1 . . Slashing Weapon 1 | . . . . . . . . 1 . . Piercing Weapon 1 | . . . . . . . . 1 . . Special Melee Weapon . | . . . . . . . . . . . Unidentified Prototypes 2 | . . . 1 . 1 . . . . . Parts Lost 24 | . . . . . . . . 14 . 10 Power 4 | . . . . . . . . 2 . 2 Propulsion 6 | . . . . . . . . 3 . 3 Utility 6 | . . . . . . . . 3 . 3 Weapon 8 | . . . . . . . . 6 . 2 Highest Loss Streak 10 | . . . . . . . . 8 . 10 To Critical Strikes . | . . . . . . . . . . . Average Slot Usage (%) 90 | . 95 100 100 100 88 84 92 84 89 79 Engine 8 | . 14 14 14 14 9 7 7 4 6 6 Core 1 | . . . . . . . 3 2 3 5 Treads 6 | . . . . . 21 23 23 9 . . Leg 16 | . 28 28 28 28 3 . . 9 20 17 Device 9 | . 14 2 3 14 9 7 10 13 12 8 Storage 7 | . 9 14 10 . 9 7 7 6 6 4 Processor 8 | . . 11 14 14 9 7 7 7 6 6 Hackware 1 | . . . . . . . . . 6 6 Energy Gun 5 | . 14 14 14 14 2 7 1 . . . Ballistic Gun 11 | . 14 14 14 6 24 23 4 8 6 4 Ballistic Cannon 5 | . . . . . . . 24 13 . . Impact Weapon 1 | . . . . . . . . 1 6 6 Slashing Weapon 1 | . . . . . . . . 1 6 4 Piercing Weapon 1 | . . . . . . . . 1 6 6 Naked Turns . | . . . . . . . . . . . Heaviest Build 50 | 6 11 16 16 12 22 23 45 50 44 44 Greatest Support 66 | 20 20 20 20 20 66 66 66 66 48 48 Greatest Overweight (x) 7 | . . . . . . . . 7 . 1 Average Overweight (x) . | . . . . . . . . . . . Largest Inventory Capacity 8 | 5 8 8 8 5 8 8 8 8 8 8 Average Capacity 7 | 5 7 8 7 5 8 8 8 8 8 7 Most Carried 8 | 4 5 8 8 5 8 8 8 8 8 7 Average Carried 6 | 1 4 7 7 4 7 7 6 5 7 6 Final Capacity 8 | 5 8 8 5 5 8 8 8 8 8 5 Final Carried 8 | 4 5 8 5 5 8 8 6 7 7 5 Class Distribution -------------------- 47% | Mutant 36% | Skirmisher 15% | Gladiator Dominant Class ---------------- Mutant | -10/Materials Mutant | -10/Mines Mutant | -10/Exiles Mutant | -9/Mines Skirmisher | -8/Materials Skirmisher | -7/Factory Skirmisher | -7/DSF Skirmisher | -6/Factory Gladiator | -6/Lower Caves Gladiator | -6/Lower Caves Resources | -11 -10 -10 -10 -9 -8 -7 -7 -6 -6 -6 ----------- Run | Yrd Mat Min Exi Min Mat Fac DSF Fac Low Low Matter Collected 1210 | 273 . 56 . 40 70 . 176 505 90 . Remotely . | . . . . . . . . . . . Salvage Created 1285 | 50 . 123 . . . . 62 794 211 45 Parts 46 | 5 . 7 . . . . 5 27 1 1 Haulers Intercepted . | . . . . . . . . . . . Recyclers Shooed 4 | . . . . . . . . 4 . . Parts Field Recycled . | . . . . . . . . . . . Retrieved Matter . | . . . . . . . . . . . Parts Self-Destructed 2 | . . . . . . . . . 1 1 Prevented 2 | . . . . . . . . . 2 . Kills | -11 -10 -10 -10 -9 -8 -7 -7 -6 -6 -6 ------- Run | Yrd Mat Min Exi Min Mat Fac DSF Fac Low Low Combat Hostiles Destroyed 26 | 1 . 4 . . . . 3 16 . 2 Melee 5 | . . . . . . . . 3 . 2 Guns 10 | 1 . 4 . . . . . 5 . . Cannons 9 | . . . . . . . 3 6 . . AOE 2 | . . . . . . . . 2 . . Classes Destroyed 9 | 1 . 1 . . . . . 7 . . Worker 2 | . . . . . . . . 2 . . Builder 2 | . . . . . . . . 2 . . Recycler 1 | . . . . . . . . 1 . . Swarmer 9 | . . 2 . . . . 3 2 . 2 Grunt 9 | 1 . 2 . . . . . 6 . . Sentry 2 | . . . . . . . . 2 . . Demolisher 2 | . . . . . . . . 2 . . Programmer 1 | . . . . . . . . 1 . . Assembled 3 | . . . . . . . . 3 . . Best Kill Streak 8 | 1 . 2 . . . . 3 8 . 1 Combat Bots Only 4 | 1 . 2 . . . . 3 4 . 1 Max Kills in Single Turn 4 | 1 . 1 . . . . 2 4 . 1 Gunslinging . | . . . . . . . . . . . Exploded 1 | . . . . . . . . 1 . . Melee 1 | . . . . . . . . 1 . 1 Uniques/NPCs Destroyed . | . . . . . . . . . . . Combat | -11 -10 -10 -10 -9 -8 -7 -7 -6 -6 -6 -------- Run | Yrd Mat Min Exi Min Mat Fac DSF Fac Low Low Hostile Shots Fired 339 | 4 . 41 . . 2 . 16 180 . 96 Missed 98 | 1 . 7 . . 1 . 6 51 . 32 Damage Taken 4710 | 34 . 396 . . 15 . 158 2937 . 1170 Core 975 | 10 . 90 . . . . 12 508 . 355 Absorbed by Shields . | . . . . . . . . . . . Core Remaining (%) 88 | 96 . . . 60 100 . 98 . . . Volleys Fired 58 | 3 . 16 . . . . 4 35 . . Largest 5 | 2 . 2 . . . . 4 5 . . Hottest 222 | 60 . 60 . . . . 192 222 . . Shots Fired 155 | 6 . 32 . . . . 16 101 . . Gun 84 | 6 . 32 . . . . . 46 . . Cannon 71 | . . . . . . . 16 55 . . Launcher . | . . . . . . . . . . . Special . | . . . . . . . . . . . Kinetic 136 | 3 . 16 . . . . 16 101 . . Thermal 16 | . . 16 . . . . . . . . Explosive . | . . . . . . . . . . . Electromagnetic 3 | 3 . . . . . . . . . . Robot Hit Streak 8 | 2 . 7 . . . . 2 8 . . Robot Miss Streak 5 | 2 . 5 . . . . 5 5 . . Penetration Max . | . . . . . . . . . . . Secondary Targets . | . . . . . . . . . . . Shots Hit Robots 94 | 3 . 19 . . . . 4 56 4 8 Core Hits 81 | 2 . 7 . . . . 3 65 2 2 Critical Kills . | . . . . . . . . . . . Critical Parts Destroyed . | . . . . . . . . . . . Critical Strikes 6 | . . . . . . . . 5 . 1 Blast 3 | . . . . . . . . 3 . . Sever 3 | . . . . . . . . 2 . 1 Melee Attacks 26 | . . . . . . . . 7 5 14 Impact 8 | . . . . . . . . . . 8 Slashing 14 | . . . . . . . . 7 4 3 Piercing 4 | . . . . . . . . . 1 3 Sneak Attacks . | . . . . . . . . . . . Combat Hostiles . | . . . . . . . . . . . Follow-up Attacks 4 | . . . . . . . . . . 4 Damage Inflicted 3651 | 40 . 188 . . . . 128 2453 477 365 Guns 816 | 40 . 188 . . . . . 588 . . Cannons 698 | . . . . . . . 128 570 . . Explosions 934 | . . . . . . . . 934 . . Melee 1201 | . . . . . . . . 361 477 363 Ramming 2 | . . . . . . . . . . 2 Kinetic 1386 | 15 . 85 . . . . 128 1158 . . Thermal 327 | . . 103 . . . . . 224 . . Explosive . | . . . . . . . . . . . Electromagnetic 735 | 25 . . . . . . . 710 . . Impact 198 | . . . . . . . . . . 198 Slashing 902 | . . . . . . . . 361 477 64 Piercing 101 | . . . . . . . . . . 101 Highest Corruption . | . . . . . . . . . . . Average Corruption . | . . . . . . . . . . . Corruption Purged . | . . . . . . . . . . . Corruption Blocked 11 | . . . . . . . . 11 . . Overload Shots . | . . . . . . . . . . . Overflow Damage 221 | . . . . . . . . 44 177 . Projectiles . | . . . . . . . . . . . Explosions 44 | . . . . . . . . 44 . . Melee 177 | . . . . . . . . . 177 . Knockbacks 2 | . . . . . . . . 2 . . Impact . | . . . . . . . . . . . Kinetic 2 | . . . . . . . . 2 . . Secondary . | . . . . . . . . . . . Self-Inflicted Damage 161 | . . . . . . . . 161 . . Shots 2 | . . . . . . . . 2 . . Rammed . | . . . . . . . . . . . Targets Rammed 1 | . . . . . . . . . . 1 Kicked 1 | . . . . . . . . . . 1 Crushed . | . . . . . . . . . . . Highest Temperature 228 | 46 . 228 . . . . 60 194 . . Average Temperature 76 | 22 . 85 . . . . 27 82 . . Received Heat Transfer 967 | 18 . 171 . . 9 . . 472 . 297 Effects 3 | . . 3 . . . . . . . . Interference 3 | . . 3 . . . . . . . . Siege Activations . | . . . . . . . . . . . Robots Corrupted . | . . . . . . . . . . . Combat Hostiles . | . . . . . . . . . . . Parts Fried . | . . . . . . . . . . . Impact Corruptions . | . . . . . . . . . . . Robots Melted . | . . . . . . . . . . . Combat Hostiles . | . . . . . . . . . . . Parts Melted . | . . . . . . . . . . . Heat Transferred 425 | . . 225 . . . . . 200 . . Parts Sabotaged . | . . . . . . . . . . . Parts Stolen . | . . . . . . . . . . . Parts Stripped . | . . . . . . . . . . . Power Chain Reactions 1 | . . . . . . . . 1 . . Alert | -11 -10 -10 -10 -9 -8 -7 -7 -6 -6 -6 ------- Run | Yrd Mat Min Exi Min Mat Fac DSF Fac Low Low Peak Influence 228 | 20 13 119 . . 47 . 70 228 . . Initial 36 | . 13 4 . . . . . 36 . . Average 57 | 6 13 61 . . 33 . 13 94 . . Maximum Alert Level 1 | . . . . . . . . 1 . . Low Security (%) 99 | 100 100 100 . 100 100 100 100 99 . . Level 1 . | . . . . . . . . . . . Level 2 . | . . . . . . . . . . . Level 3 . | . . . . . . . . . . . Level 4 . | . . . . . . . . . . . Level 5 . | . . . . . . . . . . . High Security . | . . . . . . . . . . . Max Security . | . . . . . . . . . . . Squads Dispatched 15 | . . . . . 2 . 1 11 . 1 Investigation 3 | . . . . . . . . 2 . 1 Extermination 1 | . . . . . . . . 1 . . Reinforcement 7 | . . . . . 2 . 1 4 . . Assault . | . . . . . . . . . . . Garrison 4 | . . . . . . . . 4 . . Intercept . | . . . . . . . . . . . Searches Triggered . | . . . . . . . . . . . Construction Impeded 1 | . . . . . . . . 1 . . Haulers Reinforced . | . . . . . . . . . . . Active Scanning Responses . | . . . . . . . . . . . Cargo Convoy Interrupts 1 | . . . . . . . . 1 . . Stealth | -11 -10 -10 -10 -9 -8 -7 -7 -6 -6 -6 --------- Run | Yrd Mat Min Exi Min Mat Fac DSF Fac Low Low Distress Signals 3 | . . . . . 2 . . 1 . . Communications Jammed . | . . . . . . . . . . . Distress Signals . | . . . . . . . . . . . Times Spotted 45 | 1 1 6 . . 2 . 4 20 . 11 Peak Tracking Total 7 | 1 2 3 . . 2 . 3 3 . 7 Tactical Retreats 2 | . . . . . . . . . . 2 Traps | -11 -10 -10 -10 -9 -8 -7 -7 -6 -6 -6 ------- Run | Yrd Mat Min Exi Min Mat Fac DSF Fac Low Low Traps Triggered 6 | . . . . . . . . 6 . . Indirectly 2 | . . . . . . . . 2 . . Trap Hack Attempts . | . . . . . . . . . . . Triggered . | . . . . . . . . . . . Disarmed . | . . . . . . . . . . . Reprogrammed . | . . . . . . . . . . . Reused . | . . . . . . . . . . . Traps Reconfigurated 9 | . . . . . . . . 9 . . Traps Extracted . | . . . . . . . . . . . Installed . | . . . . . . . . . . . Triggered 4 | . . . . . . . . 1 3 . Machines | -11 -10 -10 -10 -9 -8 -7 -7 -6 -6 -6 ---------- Run | Yrd Mat Min Exi Min Mat Fac DSF Fac Low Low Machines Disabled 10 | . . . . . . . . 10 . . Max in Single Turn 3 | . . . . . . . . 3 . . Machines Repaired . | . . . . . . . . . . . Machines Dismantled . | . . . . . . . . . . . Machines Sabotaged . | . . . . . . . . . . . Overloaded Fab Kills . | . . . . . . . . . . . Hacking | -11 -10 -10 -10 -9 -8 -7 -7 -6 -6 -6 --------- Run | Yrd Mat Min Exi Min Mat Fac DSF Fac Low Low Machines Accessed 12 | . 3 . 2 . . 1 . 5 . 1 Terminals 10 | . 3 . . . . 1 . 5 . 1 Fabricators . | . . . . . . . . . . . Repair Stations . | . . . . . . . . . . . Recycling Units . | . . . . . . . . . . . Scanalyzers . | . . . . . . . . . . . Garrison Access . | . . . . . . . . . . . Total Hacks 35 | . 8 . 10 . . 1 . 12 . 4 Successful 24 | . 3 . 10 . . 1 . 6 . 4 Failed 11 | . 5 . . . . . . 6 . . Catastrophic 2 | . 1 . . . . . . 1 . . Database Lockouts . | . . . . . . . . . . . Manual 5 | . . . 1 . . 1 . 2 . 1 Terminals 25 | . 8 . . . . 1 . 12 . 4 Fabricators . | . . . . . . . . . . . Repair Stations . | . . . . . . . . . . . Recycling Units . | . . . . . . . . . . . Scanalyzers . | . . . . . . . . . . . Garrison Access . | . . . . . . . . . . . Terminal Hacks 24 | . 3 . 10 . . 1 . 6 . 4 Record 17 | . 2 . 9 . . . . 2 . 4 Open DSF 2 | . . . . . . 1 . 1 . . Branch Access Points 1 | . 1 . . . . . . . . . Alert Level 1 | . . . . . . . . 1 . . Dispatch Records 1 | . . . . . . . . 1 . . Recall Reinforcements 1 | . . . . . . . . 1 . . Derelict Proto ID Bank 1 | . . . 1 . . . . . . . Fabricator Hacks . | . . . . . . . . . . . Repair Station Hacks . | . . . . . . . . . . . Recycling Unit Hacks . | . . . . . . . . . . . Scanalyzer . | . . . . . . . . . . . Garrison Access Hacks . | . . . . . . . . . . . Unauthorized Hacks . | . . . . . . . . . . . Terminals . | . . . . . . . . . . . Fabricators . | . . . . . . . . . . . Repair Stations . | . . . . . . . . . . . Recycling Units . | . . . . . . . . . . . Scanalyzers . | . . . . . . . . . . . Garrison Access . | . . . . . . . . . . . Data Cores Recovered . | . . . . . . . . . . . Used . | . . . . . . . . . . . Hacking Detections 9 | . 3 . . . . . . 5 . 1 Full Trace Events 1 | . . . . . . . . . . 1 Feedback Events . | . . . . . . . . . . . Feedback Blocked . | . . . . . . . . . . . Robot Schematics Acquired . | . . . . . . . . . . . Robots Built . | . . . . . . . . . . . Authchips . | . . . . . . . . . . . Time . | . . . . . . . . . . . Total Robot Build Rating . | . . . . . . . . . . . Part Schematics Acquired . | . . . . . . . . . . . Parts Built . | . . . . . . . . . . . Authchips . | . . . . . . . . . . . Time . | . . . . . . . . . . . Total Part Build Rating . | . . . . . . . . . . . Parts Repaired . | . . . . . . . . . . . Time . | . . . . . . . . . . . Parts Recycled . | . . . . . . . . . . . Recycled Matter . | . . . . . . . . . . . Retrieved Matter . | . . . . . . . . . . . Retrieved Components . | . . . . . . . . . . . Parts Scanalyzed . | . . . . . . . . . . . Part Schematics Acquired . | . . . . . . . . . . . Parts Damaged . | . . . . . . . . . . . Bothacking | -11 -10 -10 -10 -9 -8 -7 -7 -6 -6 -6 ------------ Run | Yrd Mat Min Exi Min Mat Fac DSF Fac Low Low Used RIF Installer . | . . . . . . . . . . . Robots Hacked . | . . . . . . . . . . . Non-combat . | . . . . . . . . . . . Combat . | . . . . . . . . . . . Robot Hacks Applied . | . . . . . . . . . . . Relay Couplers Released . | . . . . . . . . . . . Fabnet Peak Effective % . | . . . . . . . . . . . Robots Rewired . | . . . . . . . . . . . Allies Hacked . | . . . . . . . . . . . Hacks Repelled . | . . . . . . . . . . . Allies | -11 -10 -10 -10 -9 -8 -7 -7 -6 -6 -6 -------- Run | Yrd Mat Min Exi Min Mat Fac DSF Fac Low Low Total Allies 1 | . . . . 1 . . . . . . Largest Group 1 | . . . . 1 1 . . . . . Highest-Rated Group 31 | . . . . 31 31 . . . . . Highest-Rated Ally 31 | . . . . 31 31 . . . . . Total Orders . | . . . . . . . . . . . Ally Attacks 1 | . . . . . 1 . . . . . Total Damage 21 | . . . . . 21 . . . . . Kills 1 | . . . . . 1 . . . . . Allies Corrupted . | . . . . . . . . . . . Allies Melted . | . . . . . . . . . . . Intel | -11 -10 -10 -10 -9 -8 -7 -7 -6 -6 -6 ------- Run | Yrd Mat Min Exi Min Mat Fac DSF Fac Low Low Robot Analysis Total . | . . . . . . . . . . . Derelict Logs Recovered 2 | . . . . 2 . . . . . . Drone Launches . | . . . . . . . . . . . Drone Recoveries . | . . . . . . . . . . . Exploration | -11 -10 -10 -10 -9 -8 -7 -7 -6 -6 -6 ------------- Run | Yrd Mat Min Exi Min Mat Fac DSF Fac Low Low Turns Passed 3965 | 117 185 443 452 219 480 81 108 1238 524 118 Spaces Moved 2720 | 88 150 321 363 177 237 51 53 783 424 73 Core 27 | 20 . . . . . . . 5 . 2 Treads 630 | . . . . . 181 51 53 345 . . Legs 2063 | 68 150 321 363 177 56 . . 433 424 71 Wheels . | . . . . . . . . . . . Hover . | . . . . . . . . . . . Flight . | . . . . . . . . . . . Fastest Speed 50 | 50 120 120 120 120 120 145 145 120 120 100 Average Speed 125 | 104 120 120 120 120 139 145 145 133 120 119 Slowest Speed 400 | 120 120 120 120 120 145 145 145 400 120 120 Overloaded Moves . | . . . . . . . . . . . Propulsion Burnouts . | . . . . . . . . . . . Robots Hopped . | . . . . . . . . . . . Cave-ins Triggered 1 | . . . . . . . . 1 . . Exploration Rate (%) 34 | 6 36 47 73 43 24 2 51 17 59 16 Regions Visited 10 Branch Regions 5 Pre-discovered Areas 4 | . . 1 1 1 . . . . . 1 Known Exits Taken 2 | . 1 . . . . 1 . . . . Unknown Exits Taken 7 | 1 . 1 1 1 1 . . 1 1 . Scrap Searched 4 | . . . . 2 . . . . 2 . Spaces Dug . | . . . . . . . . . . . Terrain Destroyed 34 | . . . . . . . . 34 . . Melee . | . . . . . . . . . . . Projectile 8 | . . . . . . . . 8 . . AOE 26 | . . . . . . . . 26 . . Terrain Rammed . | . . . . . . . . . . . Walls Destroyed . | . . . . . . . . . . . Machines Disabled . | . . . . . . . . . . . Actions | -11 -10 -10 -10 -9 -8 -7 -7 -6 -6 -6 --------- Run | Yrd Mat Min Exi Min Mat Fac DSF Fac Low Low Total 3119 | 107 155 349 382 183 387 58 75 908 431 84 Wait 198 | . 1 3 . 4 135 6 . 49 . . Move 2710 | 87 149 320 362 176 236 50 52 782 423 73 Hop . | . . . . . . . . . . . Pick Up 56 | 10 3 5 6 1 7 1 6 15 2 . Fast Attach . | . . . . . . . . . . . Attach 30 | 6 1 . 1 . 4 1 2 13 2 . Detach 1 | . . . . . 1 . . . . . Swap 16 | 1 . 3 2 1 3 . 5 1 . . Drop 20 | . 1 2 8 1 1 . 6 1 . . Fire 58 | 3 . 16 . . . . 4 35 . . Melee 21 | . . . . . . . . 7 4 10 Ram . | . . . . . . . . . . . Kick 1 | . . . . . . . . . . 1 Crush . | . . . . . . . . . . . Escape Stasis . | . . . . . . . . . . . Rewire 8 | . . . 3 . . . . 5 . . Trap . | . . . . . . . . . . . Miscellaneous . | . . . . . . . . . . . Route ------- -11/Scrapyard -10/Materials (discovered 2 exits: *Min x2) -10/Mines -10/Exiles -9/Mines -8/Materials -7/Factory -7/DSF -6/Factory -6/Lower Caves -6/Lower Caves (discovered 2 exits: Fac / Zio) History --------- Turn | Location | Event 2 | -11/Scrapyard | Met Revision 17 66 | -11/Scrapyard | Discovered new exit (range 8) 118 | -11/Scrapyard | Entered Materials 231 | -10/Materials | Identified exit to Mines 303 | -10/Materials | Entered Mines 303 | -10/Mines | Joined a pair of Derelicts in attacking an 0b10 outpost 305 | -10/Mines | Build established: Mutant 474 | -10/Mines | Learned location of Storage (-7) 733 | -10/Mines | Deemed a non-threat by the Exiles lab entrance 734 | -10/Mines | Discovered new exit (range 5) 746 | -10/Mines | Entered Exiles 781 | -10/Exiles | Met 8R-AWN 800 | -10/Exiles | Met EX-HEX 886 | -10/Exiles | Met EX-DEC 928 | -10/Exiles | Learned location of Zion (-6) 959 | -10/Exiles | Met EX-BIN 1008 | -10/Exiles | Aligned with FarCom system 1010 | -10/Exiles | Given EX-Vault access code 1058 | -10/Exiles | Opened EX-Vault 1068 | -10/Exiles | Found Prototype Processor 1071 | -10/Exiles | Identified Modified TNC 1075 | -10/Exiles | Found Trap Reconfigurator 1104 | -10/Exiles | Warned to stay clear of 0b10 Research branches 1116 | -10/Exiles | Exiles lab attacked by MAIN.C 1185 | -10/Exiles | Discovered new exit (range 14) 1198 | -10/Exiles | Left Exiles lab with Trap Reconfigurator 1198 | -10/Exiles | Entered Mines 1240 | -9/Mines | Learned 4 Materials zone layouts 1291 | -9/Mines | Received a Mining Laser from a helpful Derelict 1353 | -9/Mines | Discovered new exit (range 5) 1417 | -9/Mines | Entered Materials 1417 | -8/Materials | Accompanied by 1 ally 1417 | -8/Materials | Evolved 4 slots: Propulsion x1, Utility x2, Weapon x1 1719 | -8/Materials | Build established: Skirmisher 1798 | -8/Materials | Met 7R-MNS 1883 | -8/Materials | Discovered new exit (range 11) 1897 | -8/Materials | Entered Factory 1897 | -7/Factory | Evolved 2 slots: Power x1, Weapon x1 1898 | -7/Factory | Caught up to 7R-MNS 1977 | -7/Factory | Identified exit to DSF 1978 | -7/Factory | Entered DSF 1979 | -7/DSF | Joined Warlord attack on 0b10 via DSF 1996 | -7/DSF | Additional patrols routed to DSF 2037 | -7/DSF | Lost 5 allies 2051 | -7/DSF | Discovered new exit (range 15) 2086 | -7/DSF | Entered Factory 2086 | -6/Factory | Evolved 2 slots: Utility x1, Weapon x1 2463 | -6/Factory | Garrison activated, responded to threat 2614 | -6/Factory | Assembled infested ambush trap array 2717 | -6/Factory | Lost 8 parts (2p3n3w) 2926 | -6/Factory | Crushed by falling debris 2926 | -6/Factory | Core integrity fell below 50% 2951 | -6/Factory | Lost 5 parts (2u3w) 3115 | -6/Factory | Discovered new exit (range 16) 3195 | -6/Factory | Build established: Mutant 3226 | -6/Factory | Cargo convoy interrupted 3324 | -6/Factory | Entered Lower Caves 3591 | -6/Lower Caves | Encountered a Warlord checkpoint 3640 | -6/Lower Caves | Build established: Gladiator 3816 | -6/Lower Caves | Discovered new exit (range 8) 3848 | -6/Lower Caves | Entered another Lower Caves area 3928 | -6/Lower Caves | Attracted the attention of an 0b10 base 3944 | -6/Lower Caves | Core integrity fell below 20% 3965 | -6/Lower Caves | Identified exit to Factory 3965 | -6/Lower Caves | Identified exit to Zion 3965 | -6/Lower Caves | Learned 6 Upper Caves zone layouts 3966 | -6/Lower Caves | Destroyed by S-27 Virus with Autogun Last Messages --------------- 03961_ Storage Shell breached. 03961_ Penetrated by Slug. 03962_ Arm. Leg destroyed. 03964_ Imp. Deuterium Engine destroyed. 03964_ Arm. Leg destroyed. 03965_ Connecting with Outpost Terminal... 03965_ Current location identified: Lower Caves >>Query(Status Report 419A) RECEIVED DETACHMENT. >>Query(Status Report 183X) INTERCEPTED DERELICT INTEL. World map updated: -2/Research. >>Query(Status Report 317X) INTERCEPTED DERELICT INTEL. Loading 2 Lower Caves exits... >>Query(Status Report 452X) INTERCEPTED DERELICT INTEL. Data stored: Upper Caves zone layouts (x6). 03965_ ALERT: Suspicious activity at Terminal L001. Dispatching Investigation squad. Map ----- +----------------------------------------------------+ | ???????????????????????????????????????????# | | ???????????????????????????????????????????## | | ????????????????????????????????????????????## ## | | ????????????????????????????????????????????## ## | | ??????????????????????? ???????????????????## | | ??????????????????????? ?????#####???????## | | ??????????????????????? ##?## ????????# | | ???????????????????????? ## ????????# | | ???????????????????????? #????????## | | ????????????????????????? #????????## # | | ?????????????????????????? #?######## ## | | ???????????????????????????? ### ##? | | ??????????????????????????????# ## ###?? | | ?????????????????????????????## ##???? | | ?????????????????????????????# #????? | | ?????????????????############# ####????? | | ?????????????????# ######???????? | | ?????????????????# =| ###????????????? | | ?????????????????# ######;####%%##??????????????? | | ????????????????????#]]" "#[=##??????????????? | | ?????????????????#???]]"Y g "# ##?????????????? | | ?????????????????# #"" gg "# ## ??? | | ?????????????????# + "# ??? | | ?????????????????# # "# ###???????? | | ?????????????????#??# + ##?????????? | | ????????????????????# @ # ##??????????? | | ????????????????????# ss "T""# #???????????? | | ????????????????????#""" """"# #???????????? | | ????????????????????####;###### ####???????????? | | ??????????????????????? ???? #??????????????? | | ?????????????????????? ???? #??????????????? | | ?????????????????????#### ????## #??????????????? | | ?????????????????????????#?????? ??????????????? | | ????????????????????????????????## ??????????????? | | ?????????????????????????????????? ??????????????? | | ?????????????????????????????????? ??????????????? | | ?????????????????????????????????? ?????????????? | | ?????????????????????????????????????????????????? | | ?????????????????????????????????????????????????? | | ?????????????????????????????????????????????????? | | ?????????????????????????????????????????????????? | | ?????????????????????????????????????????????????? | | ?????????????????????????????????????????????????? | | ?????????????????????????????????????????????????? | | ?????????????????????????????????????????????????? | | ?????????????????????????????????????????????????? | | ?????????????????????????????????????????????????? | | ?????????????????????????????????????????????????? | | ?????????????????????????????????????????????????? | | ?????????????????????????????????????????????????? | +----------------------------------------------------+ Best States ------------- Heat Dissipation 51 Coolant Potential 65 Energy Generation 29 Energy Capacity 500 Matter Stores 300 Matter Capacity 300 Sight Range 16 Terrain Scan Density 10 Evasion (%) 55 Targeting Accuracy 5 Melee Accuracy 5 Recoil Reduction 3 Force Boost 20 Offensive Hacking 12 Item Schematics ----------------- None Robot Schematics ------------------ None Fabricated ------------ Nothing Alien Tech Used ----------------- None Achievements -------------- None Challenges ------------ None Game ------ Seed MatterReactionRailgun Manual? 0 Play Time 00:51:50 Cumulative 37.4 hours Start 2024.03.31 @ 17:37:06 End 2024.03.31 @ 18:28:35 Sessions 1 Manual Loads 0 Difficulty Rogue Special Mode None Game No. 42 Rogue 42 Adventurer 0 Explorer 0 Win Type - Total 0 Types 0/0/0/0/0/0/0/0/0 Lore% 34 Gallery% 35 Achievement% 32 Wizard Run 0 Options --------- Layout 1 ASCII 0 Keyboard 0 Movement Numpad Keybinds 0 Fullscreen 1 Font 24/Smallcaps Map View 50x35 Zoom Use 0% Tactical HUD 1 Map Filters NONE Filters NONE Steam 1 RUN: 28c47e64-3d3f-4944-a3a6-4ab5e2f3790d